fUST/lending_fUST_20260512
["ID","MTS","AMOUNT","RATE_DAILY","PERIOD"]
[422098287,1778573447000,-55164.87995443,0.00012029,21]
[422098289,1778573447000,-1279.2083,0.00012054,2]
[422098264,1778573447000,-500.0,0.0001178,2]
[422098280,1778573447000,-578.20924308,0.00011838,2]
[422098261,1778573447000,-500.0,0.0001178,2]
[422098231,1778573447000,-500.0,0.0001178,2]
[422098259,1778573447000,-504.67,0.0001178,2]
[422098286,1778573447000,-644.79446246,0.00012003,2]
[422098233,1778573447000,-500.0,0.0001178,2]
[422098235,1778573447000,-500.0,0.0001178,2]
[422098234,1778573447000,-530.07,0.0001178,2]
[422098240,1778573447000,-500.0,0.0001178,2]
[422098237,1778573447000,-500.0,0.0001178,2]
[422098238,1778573447000,-500.0,0.0001178,2]
[422098241,1778573447000,-1032.29,0.0001178,2]
[422098236,1778573447000,-500.0,0.0001178,2]
[422098239,1778573447000,-500.0,0.0001178,2]
[422098242,1778573447000,-614.5,0.0001178,2]
[422098245,1778573447000,-4703.19,0.0001178,2]
[422098243,1778573447000,-718.47,0.0001178,2]
[422098246,1778573447000,-500.0,0.0001178,2]
[422098254,1778573447000,-500.0,0.0001178,2]
[422098247,1778573447000,-810.0,0.0001178,2]
[422098248,1778573447000,-681.19,0.0001178,2]
[422098249,1778573447000,-500.0,0.0001178,2]
[422098253,1778573447000,-500.0,0.0001178,2]
[422098252,1778573447000,-949.09,0.0001178,2]
[422098255,1778573447000,-571.69,0.0001178,2]
[422098244,1778573447000,-500.0,0.0001178,2]
[422098251,1778573447000,-500.0,0.0001178,2]
[422098250,1778573447000,-517.8,0.0001178,2]
[422098257,1778573447000,-500.0,0.0001178,2]
[422098266,1778573447000,-500.0,0.0001178,2]
[422098267,1778573447000,-500.0,0.0001178,2]
[422098256,1778573447000,-709.03,0.0001178,2]
[422098258,1778573447000,-500.0,0.0001178,2]
[422098265,1778573447000,-500.0,0.0001178,2]
[422098295,1778573447000,-529.41,0.00012054,2]
[422098288,1778573447000,-15610.52935545,0.00012032,21]
[422098299,1778573447000,-500.0,0.00012054,2]
[422098330,1778573447000,-500.0,0.00012054,2]
[422098332,1778573447000,-1056.7,0.00012054,2]
[422098328,1778573447000,-500.0,0.00012054,2]
[422098335,1778573447000,-609.11,0.00012054,2]
[422098344,1778573447000,-373.0,0.0001211,3]
[422098345,1778573447000,-693.3919763,0.00012113,2]
[422098346,1778573447000,-183.45101184,0.00012123,2]
[422098334,1778573447000,-500.0,0.00012054,2]
[422098337,1778573447000,-173.95825538,0.00012054,2]
[422098336,1778573447000,-500.0,0.00012054,2]
[422098339,1778573447000,-334.3627269,0.00012054,2]
[422098343,1778573447000,-10106.77776322,0.000121,2]
[422098340,1778573447000,-518.84,0.00012054,2]
[422098341,1778573447000,-668.65185757,0.00012058,2]
[422098342,1778573447000,-587.0,0.00012099,2]
[422098338,1778573447000,-500.0,0.00012054,2]
[422098347,1778573447000,-719.04747942,0.00012168,2]
[422098352,1778573447000,-500.0,0.00012328,2]
[422098354,1778573447000,-588.45065867,0.00012328,2]
[422098351,1778573447000,-500.0,0.00012328,2]
[422098357,1778573447000,-500.0,0.00012328,2]
[422098359,1778573447000,-500.0,0.00012328,2]
[422098353,1778573447000,-500.0,0.00012328,2]
[422098349,1778573447000,-706.0733056,0.00012223,2]
[422098350,1778573447000,-1279.2083,0.00012328,2]
[422098360,1778573447000,-500.0,0.00012328,2]
[422098358,1778573447000,-500.0,0.00012328,2]
[422098355,1778573447000,-529.41,0.00012328,2]
[422098297,1778573447000,-500.0,0.00012054,2]
[422098333,1778573447000,-500.0,0.00012054,2]
[422098331,1778573447000,-500.0,0.00012054,2]
[422098348,1778573447000,-10106.77776322,0.000122,2]
[422098327,1778573447000,-500.0,0.00012054,2]
[422098323,1778573447000,-504.67,0.00012054,2]
[422098300,1778573447000,-500.0,0.00012054,2]
[422098296,1778573447000,-500.0,0.00012054,2]
[422098356,1778573447000,-500.0,0.00012328,2]
[422098305,1778573447000,-1032.29,0.00012054,2]
[422098298,1778573447000,-500.0,0.00012054,2]
[422098303,1778573447000,-500.0,0.00012054,2]
[422098302,1778573447000,-500.0,0.00012054,2]
[422098306,1778573447000,-614.5,0.00012054,2]
[422098304,1778573447000,-500.0,0.00012054,2]
[422098301,1778573447000,-500.0,0.00012054,2]
[422098320,1778573447000,-709.03,0.00012054,2]
[422098319,1778573447000,-571.69,0.00012054,2]
[422098309,1778573447000,-4703.19,0.00012054,2]
[422098310,1778573447000,-500.0,0.00012054,2]
[422098307,1778573447000,-718.47,0.00012054,2]
[422098311,1778573447000,-810.0,0.00012054,2]
[422098326,1778573447000,-500.0,0.00012054,2]
[422098321,1778573447000,-500.0,0.00012054,2]
[422098329,1778573447000,-500.0,0.00012054,2]
[422098325,1778573447000,-500.0,0.00012054,2]
[422098322,1778573447000,-500.0,0.00012054,2]
[422098317,1778573447000,-500.0,0.00012054,2]
[422098318,1778573447000,-500.0,0.00012054,2]
[422098324,1778573447000,-500.0,0.00012054,2]
[422098313,1778573447000,-500.0,0.00012054,2]
[422098314,1778573447000,-517.8,0.00012054,2]
[422098312,1778573447000,-681.19,0.00012054,2]
[422098315,1778573447000,-500.0,0.00012054,2]
[422098308,1778573447000,-500.0,0.00012054,2]
[422098316,1778573447000,-949.09,0.00012054,2]
[422098387,1778573448000,-500.0,0.00012328,2]
[422098384,1778573448000,-500.0,0.00012328,2]
[422098392,1778573448000,-1056.7,0.00012328,2]
[422098386,1778573448000,-500.0,0.00012328,2]
[422098388,1778573448000,-500.0,0.00012328,2]
[422098391,1778573448000,-500.0,0.00012328,2]
[422098390,1778573448000,-500.0,0.00012328,2]
[422098393,1778573448000,-500.0,0.00012328,2]
[422098394,1778573448000,-500.0,0.00012328,2]
[422098389,1778573448000,-500.0,0.00012328,2]
[422098399,1778573448000,-864.0,0.00012341,2]
[422098396,1778573448000,-500.0,0.00012328,2]
[422098397,1778573448000,-500.0,0.00012328,2]
[422098401,1778573448000,-10106.77776322,0.000125,2]
[422098400,1778573448000,-10106.77776322,0.000124,2]
[422098398,1778573448000,-518.84,0.00012328,2]
[422098402,1778573448000,-500.0,0.0001255,2]
[422098404,1778573448000,-1279.2083,0.00012602,2]
[422098385,1778573448000,-161.16188102,0.00012328,2]
[422098405,1778573448000,-500.0,0.00012602,2]
[422098395,1778573448000,-609.11,0.00012328,2]
[422098383,1778573448000,-504.67,0.00012328,2]
[422098364,1778573448000,-500.0,0.00012328,2]
[422098381,1778573448000,-500.0,0.00012328,2]
[422098403,1778573448000,-10106.77776322,0.000126,2]
[422098362,1778573448000,-500.0,0.00012328,2]
[422098373,1778573448000,-500.0,0.00012328,2]
[422098361,1778573448000,-500.0,0.00012328,2]
[422098372,1778573448000,-681.19,0.00012328,2]
[422098365,1778573448000,-1032.29,0.00012328,2]
[422098363,1778573448000,-500.0,0.00012328,2]
[422098370,1778573448000,-500.0,0.00012328,2]
[422098366,1778573448000,-614.5,0.00012328,2]
[422098382,1778573448000,-500.0,0.00012328,2]
[422098367,1778573448000,-718.47,0.00012328,2]
[422098371,1778573448000,-810.0,0.00012328,2]
[422098368,1778573448000,-500.0,0.00012328,2]
[422098374,1778573448000,-517.8,0.00012328,2]
[422098379,1778573448000,-571.69,0.00012328,2]
[422098376,1778573448000,-949.09,0.00012328,2]
[422098378,1778573448000,-500.0,0.00012328,2]
[422098375,1778573448000,-500.0,0.00012328,2]
[422098377,1778573448000,-500.0,0.00012328,2]
[422098380,1778573448000,-709.03,0.00012328,2]
[422098369,1778573448000,-4703.19,0.00012328,2]
[422098406,1778573448000,-554.80246219,0.00012602,2]
[422098408,1778573448000,-529.41,0.00012602,2]
[422098448,1778573448000,-500.0,0.00012602,2]
[422098433,1778573448000,-709.03,0.00012602,2]
[422098435,1778573448000,-500.0,0.00012602,2]
[422098434,1778573448000,-163.50375507,0.00012602,2]
[422098437,1778573448000,-500.0,0.00012602,2]
[422098436,1778573448000,-504.67,0.00012602,2]
[422098438,1778573448000,-500.0,0.00012602,2]
[422098444,1778573448000,-1056.7,0.00012602,2]
[422098439,1778573448000,-500.0,0.00012602,2]
[422098442,1778573448000,-500.0,0.00012602,2]
[422098432,1778573448000,-571.69,0.00012602,2]
[422098441,1778573448000,-500.0,0.00012602,2]
[422098447,1778573448000,-609.11,0.00012602,2]
[422098445,1778573448000,-500.0,0.00012602,2]
[422098449,1778573448000,-500.0,0.00012602,2]
[422098450,1778573448000,-518.84,0.00012602,2]
[422098451,1778573448000,-402.87571946,0.00012603,2]
[422098452,1778573448000,-320.435,0.00012608,2]
[422098453,1778573448000,-10106.77776322,0.000127,2]
[422098446,1778573448000,-500.0,0.00012602,2]
[422098409,1778573448000,-482.56,0.00012602,2]
[422098443,1778573448000,-500.0,0.00012602,2]
[422098427,1778573448000,-517.8,0.00012602,2]
[422098440,1778573448000,-500.0,0.00012602,2]
[422098428,1778573448000,-500.0,0.00012602,2]
[422098413,1778573448000,-500.0,0.00012602,2]
[422098410,1778573448000,-500.0,0.00012602,2]
[422098407,1778573448000,-500.0,0.00012602,2]
[422098411,1778573448000,-500.0,0.00012602,2]
[422098414,1778573448000,-529.28869552,0.00012602,2]
[422098431,1778573448000,-500.0,0.00012602,2]
[422098412,1778573448000,-500.0,0.00012602,2]
[422098418,1778573448000,-1032.29,0.00012602,2]
[422098416,1778573448000,-500.0,0.00012602,2]
[422098419,1778573448000,-614.5,0.00012602,2]
[422098415,1778573448000,-557.38205046,0.00012602,2]
[422098417,1778573448000,-500.0,0.00012602,2]
[422098420,1778573448000,-718.47,0.00012602,2]
[422098421,1778573448000,-500.0,0.00012602,2]
[422098422,1778573448000,-4703.19,0.00012602,2]
[422098423,1778573448000,-500.0,0.00012602,2]
[422098425,1778573448000,-681.19,0.00012602,2]
[422098426,1778573448000,-500.0,0.00012602,2]
[422098429,1778573448000,-949.09,0.00012602,2]
[422098424,1778573448000,-810.0,0.00012602,2]
[422098430,1778573448000,-500.0,0.00012602,2]
[422098495,1778573449000,-221.82425463,0.00012876,2]
[422098500,1778573449000,-609.11,0.00012876,2]
[422098496,1778573449000,-500.0,0.00012876,2]
[422098493,1778573449000,-504.67,0.00012876,2]
[422098491,1778573449000,-709.03,0.00012876,2]
[422098488,1778573449000,-949.09,0.00012876,2]
[422098503,1778573449000,-3000.0,0.0001288,30]
[422098492,1778573449000,-500.0,0.00012876,2]
[422098489,1778573449000,-500.0,0.00012876,2]
[422098490,1778573449000,-571.69,0.00012876,2]
[422098494,1778573449000,-500.0,0.00012876,2]
[422098487,1778573449000,-517.8,0.00012876,2]
[422098502,1778573449000,-518.84,0.00012876,2]
[422098497,1778573449000,-500.0,0.00012876,2]
[422098512,1778573449000,-1496.295,0.00013,2]
[422098501,1778573449000,-500.0,0.00012876,2]
[422098498,1778573449000,-1056.7,0.00012876,2]
[422098504,1778573449000,-3000.0,0.0001289,30]
[422098508,1778573449000,-5984.72495,0.0001292,30]
[422098505,1778573449000,-10106.77776322,0.000129,2]
[422098507,1778573449000,-3000.0,0.0001291,30]
[422098506,1778573449000,-3000.0,0.000129,30]
[422098509,1778573449000,-198.0,0.0001298,2]
[422098516,1778573449000,-500.0,0.0001315,2]
[422098511,1778573449000,-1496.295,0.00013,2]
[422098510,1778573449000,-10106.77776322,0.00013,2]
[422098515,1778573449000,-500.0,0.0001315,2]
[422098486,1778573449000,-681.19,0.00012876,2]
[422098499,1778573449000,-500.0,0.00012876,2]
[422098483,1778573449000,-718.47,0.00012876,2]
[422098459,1778573449000,-160.0,0.00012804,2]
[422098484,1778573449000,-4703.19,0.00012876,2]
[422098454,1778573449000,-373.862478,0.0001274,2]
[422098455,1778573449000,-160.0,0.0001274,2]
[422098456,1778573449000,-209.194997,0.0001274,2]
[422098458,1778573449000,-3000.0,0.000128,30]
[422098463,1778573449000,-3000.0,0.0001281,30]
[422098457,1778573449000,-258.389994,0.0001274,2]
[422098460,1778573449000,-546.871391,0.00012804,2]
[422098461,1778573449000,-678.52245885,0.00012804,2]
[422098462,1778573449000,-255.22032315,0.00012804,2]
[422098465,1778573449000,-3000.0,0.0001283,30]
[422098464,1778573449000,-3000.0,0.0001282,30]
[422098475,1778573449000,-500.0,0.00012876,2]
[422098474,1778573449000,-529.41,0.00012876,2]
[422098481,1778573449000,-1032.29,0.00012876,2]
[422098476,1778573449000,-500.0,0.00012876,2]
[422098468,1778573449000,-3000.0,0.0001285,30]
[422098466,1778573449000,-201.587908,0.00012838,2]
[422098472,1778573449000,-500.0,0.00012876,2]
[422098467,1778573449000,-3000.0,0.0001284,30]
[422098473,1778573449000,-500.0,0.00012876,2]
[422098469,1778573449000,-402.87571946,0.00012855,7]
[422098471,1778573449000,-3000.0,0.0001287,30]
[422098470,1778573449000,-3000.0,0.0001286,30]
[422098478,1778573449000,-500.0,0.00012876,2]
[422098480,1778573449000,-500.0,0.00012876,2]
[422098479,1778573449000,-500.0,0.00012876,2]
[422098485,1778573449000,-810.0,0.00012876,2]
[422098482,1778573449000,-614.5,0.00012876,2]
[422098477,1778573449000,-500.0,0.00012876,2]
[422098514,1778573449000,-10106.77776322,0.000131,2]
[422098561,1778573449000,-718.47,0.00013424,2]
[422098518,1778573449000,-500.0,0.0001315,2]
[422098547,1778573449000,-10106.77776322,0.000133,2]
[422098551,1778573449000,-10106.77776322,0.000134,2]
[422098548,1778573449000,-327.0,0.00013309,2]
[422098549,1778573449000,-169.93749,0.00013377,2]
[422098553,1778573449000,-500.0,0.00013424,2]
[422098552,1778573449000,-500.0,0.00013424,2]
[422098558,1778573449000,-500.0,0.00013424,2]
[422098564,1778573449000,-681.19,0.00013424,2]
[422098562,1778573449000,-4703.19,0.00013424,2]
[422098557,1778573449000,-500.0,0.00013424,2]
[422098565,1778573449000,-517.8,0.00013424,2]
[422098560,1778573449000,-614.5,0.00013424,2]
[422098559,1778573449000,-1032.29,0.00013424,2]
[422098550,1778573449000,-285.265905,0.00013377,2]
[422098567,1778573449000,-500.0,0.00013424,2]
[422098566,1778573449000,-949.09,0.00013424,2]
[422098570,1778573449000,-500.0,0.00013424,2]
[422098579,1778573449000,-518.84,0.00013424,2]
[422098571,1778573449000,-504.67,0.00013424,2]
[422098569,1778573449000,-709.03,0.00013424,2]
[422098573,1778573449000,-500.0,0.00013424,2]
[422098572,1778573449000,-500.0,0.00013424,2]
[422098576,1778573449000,-500.0,0.00013424,2]
[422098575,1778573449000,-1056.7,0.00013424,2]
[422098574,1778573449000,-500.0,0.00013424,2]
[422098578,1778573449000,-500.0,0.00013424,2]
[422098577,1778573449000,-609.11,0.00013424,2]
[422098513,1778573449000,-1496.29,0.00013,2]
[422098563,1778573449000,-810.0,0.00013424,2]
[422098556,1778573449000,-500.0,0.00013424,2]
[422098568,1778573449000,-571.69,0.00013424,2]
[422098554,1778573449000,-529.41,0.00013424,2]
[422098528,1778573449000,-517.8,0.0001315,2]
[422098546,1778573449000,-478.96551444,0.00013243,2]
[422098519,1778573449000,-500.0,0.0001315,2]
[422098523,1778573449000,-614.5,0.0001315,2]
[422098525,1778573449000,-4703.19,0.0001315,2]
[422098524,1778573449000,-718.47,0.0001315,2]
[422098526,1778573449000,-810.0,0.0001315,2]
[422098522,1778573449000,-1032.29,0.0001315,2]
[422098517,1778573449000,-529.41,0.0001315,2]
[422098521,1778573449000,-500.0,0.0001315,2]
[422098520,1778573449000,-500.0,0.0001315,2]
[422098527,1778573449000,-681.19,0.0001315,2]
[422098531,1778573449000,-571.69,0.0001315,2]
[422098530,1778573449000,-500.0,0.0001315,2]
[422098532,1778573449000,-709.03,0.0001315,2]
[422098529,1778573449000,-949.09,0.0001315,2]
[422098541,1778573449000,-500.0,0.0001315,2]
[422098533,1778573449000,-500.0,0.0001315,2]
[422098545,1778573449000,-402.87571946,0.00013233,14]
[422098555,1778573449000,-500.0,0.00013424,2]
[422098544,1778573449000,-5000.0,0.0001322,2]
[422098538,1778573449000,-1056.7,0.0001315,2]
[422098540,1778573449000,-609.11,0.0001315,2]
[422098539,1778573449000,-500.0,0.0001315,2]
[422098543,1778573449000,-238.0,0.00013205,3]
[422098542,1778573449000,-518.84,0.0001315,2]
[422098536,1778573449000,-500.0,0.0001315,2]
[422098535,1778573449000,-500.0,0.0001315,2]
[422098534,1778573449000,-504.67,0.0001315,2]
[422098537,1778573449000,-500.0,0.0001315,2]
[422098624,1778573450000,-152.0,0.0001369,7]
[422098622,1778573450000,-500.0,0.00013673,2]
[422098623,1778573450000,-358.34292978,0.00013673,2]
[422098621,1778573450000,-522.34402111,0.00013673,2]
[422098634,1778573450000,-500.0,0.00013698,2]
[422098613,1778573450000,-500.0,0.00013673,2]
[422098616,1778573450000,-500.0,0.00013673,2]
[422098614,1778573450000,-542.35770873,0.00013673,2]
[422098618,1778573450000,-500.0,0.00013673,2]
[422098619,1778573450000,-500.0,0.00013673,2]
[422098620,1778573450000,-500.0,0.00013673,2]
[422098625,1778573450000,-500.0,0.00013698,2]
[422098617,1778573450000,-500.0,0.00013673,2]
[422098635,1778573450000,-1032.29,0.00013698,2]
[422098630,1778573450000,-529.41,0.00013698,2]
[422098627,1778573450000,-1000.0,0.00013698,2]
[422098628,1778573450000,-1000.0,0.00013698,2]
[422098631,1778573450000,-500.0,0.00013698,2]
[422098626,1778573450000,-500.0,0.00013698,2]
[422098632,1778573450000,-500.0,0.00013698,2]
[422098636,1778573450000,-614.5,0.00013698,2]
[422098638,1778573450000,-4703.19,0.00013698,2]
[422098645,1778573450000,-709.03,0.00013698,2]
[422098639,1778573450000,-810.0,0.00013698,2]
[422098641,1778573450000,-517.8,0.00013698,2]
[422098649,1778573450000,-500.0,0.00013698,2]
[422098642,1778573450000,-949.09,0.00013698,2]
[422098646,1778573450000,-500.0,0.00013698,2]
[422098615,1778573450000,-500.0,0.00013673,2]
[422098629,1778573450000,-881.838191,0.00013698,2]
[422098610,1778573450000,-500.0,0.00013673,2]
[422098580,1778573450000,-1344.48233375,0.00013425,2]
[422098612,1778573450000,-500.0,0.00013673,2]
[422098647,1778573450000,-504.67,0.00013698,2]
[422098581,1778573450000,-745.733715,0.00013444,2]
[422098582,1778573450000,-155.0,0.00013477,2]
[422098583,1778573450000,-10106.77776322,0.000135,2]
[422098585,1778573450000,-152.0,0.00013672,7]
[422098587,1778573450000,-500.0,0.00013673,2]
[422098593,1778573450000,-500.0,0.00013673,2]
[422098586,1778573450000,-152.0,0.00013672,7]
[422098584,1778573450000,-1000.0,0.00013575,2]
[422098588,1778573450000,-410.52487448,0.00013673,2]
[422098592,1778573450000,-500.0,0.00013673,2]
[422098591,1778573450000,-500.0,0.00013673,2]
[422098589,1778573450000,-500.0,0.00013673,2]
[422098594,1778573450000,-500.0,0.00013673,2]
[422098611,1778573450000,-500.0,0.00013673,2]
[422098595,1778573450000,-500.0,0.00013673,2]
[422098596,1778573450000,-500.0,0.00013673,2]
[422098608,1778573450000,-500.0,0.00013673,2]
[422098607,1778573450000,-500.0,0.00013673,2]
[422098600,1778573450000,-500.0,0.00013673,2]
[422098597,1778573450000,-500.0,0.00013673,2]
[422098599,1778573450000,-500.0,0.00013673,2]
[422098598,1778573450000,-500.0,0.00013673,2]
[422098602,1778573450000,-500.0,0.00013673,2]
[422098601,1778573450000,-500.0,0.00013673,2]
[422098603,1778573450000,-500.0,0.00013673,2]
[422098606,1778573450000,-500.0,0.00013673,2]
[422098604,1778573450000,-500.0,0.00013673,2]
[422098605,1778573450000,-220.73632157,0.00013673,2]
[422098609,1778573450000,-500.0,0.00013673,2]
[422098590,1778573450000,-500.0,0.00013673,2]
[422098637,1778573450000,-718.47,0.00013698,2]
[422098633,1778573450000,-425.45249106,0.00013698,2]
[422098648,1778573450000,-500.0,0.00013698,2]
[422098678,1778573450000,-194.978129,0.00013699,2]
[422098679,1778573450000,-224.307675,0.00013699,2]
[422098680,1778573450000,-194.978129,0.00013699,2]
[422098682,1778573450000,-224.307675,0.00013699,2]
[422098685,1778573450000,-224.307675,0.00013699,2]
[422098684,1778573450000,-194.978129,0.00013699,2]
[422098683,1778573450000,-194.978129,0.00013699,2]
[422098681,1778573450000,-194.978129,0.00013699,2]
[422098690,1778573450000,-492.45,0.00013699,2]
[422098689,1778573450000,-194.978129,0.00013699,2]
[422098696,1778573450000,-492.45,0.00013699,2]
[422098692,1778573450000,-492.45,0.00013699,2]
[422098691,1778573450000,-492.45,0.00013699,2]
[422098700,1778573450000,-500.0,0.00013699,2]
[422098688,1778573450000,-194.978129,0.00013699,2]
[422098693,1778573450000,-492.45,0.00013699,2]
[422098699,1778573450000,-500.0,0.00013699,2]
[422098695,1778573450000,-492.45,0.00013699,2]
[422098698,1778573450000,-500.0,0.00013699,2]
[422098701,1778573450000,-500.0,0.00013699,2]
[422098703,1778573450000,-500.0,0.00013699,2]
[422098704,1778573450000,-500.0,0.00013699,2]
[422098705,1778573450000,-500.0,0.00013699,2]
[422098702,1778573450000,-500.0,0.00013699,2]
[422098706,1778573450000,-428.906585,0.00013699,2]
[422098708,1778573450000,-151.0,0.00013699,2]
[422098707,1778573450000,-428.906585,0.00013699,2]
[422098711,1778573450000,-428.906585,0.00013699,2]
[422098709,1778573450000,-151.0,0.00013699,2]
[422098643,1778573450000,-500.0,0.00013698,2]
[422098694,1778573450000,-492.45,0.00013699,2]
[422098687,1778573450000,-224.307675,0.00013699,2]
[422098697,1778573450000,-492.45,0.00013699,2]
[422098686,1778573450000,-194.978129,0.00013699,2]
[422098640,1778573450000,-681.19,0.00013698,2]
[422098675,1778573450000,-492.45,0.00013699,2]
[422098644,1778573450000,-571.69,0.00013698,2]
[422098651,1778573450000,-1056.7,0.00013698,2]
[422098661,1778573450000,-405.791371,0.00013699,2]
[422098650,1778573450000,-500.0,0.00013698,2]
[422098659,1778573450000,-195.4554982,0.00013699,2]
[422098660,1778573450000,-405.791371,0.00013699,2]
[422098653,1778573450000,-609.11,0.00013698,2]
[422098657,1778573450000,-500.0,0.00013699,2]
[422098656,1778573450000,-500.0,0.00013699,2]
[422098654,1778573450000,-500.0,0.00013698,2]
[422098655,1778573450000,-518.84,0.00013698,2]
[422098658,1778573450000,-180.02160259,0.00013699,2]
[422098664,1778573450000,-405.791371,0.00013699,2]
[422098652,1778573450000,-500.0,0.00013698,2]
[422098710,1778573450000,-428.906585,0.00013699,2]
[422098677,1778573450000,-492.45,0.00013699,2]
[422098665,1778573450000,-405.791371,0.00013699,2]
[422098670,1778573450000,-151.0,0.00013699,2]
[422098671,1778573450000,-151.0,0.00013699,2]
[422098667,1778573450000,-405.791371,0.00013699,2]
[422098672,1778573450000,-151.0,0.00013699,2]
[422098669,1778573450000,-151.0,0.00013699,2]
[422098676,1778573450000,-492.45,0.00013699,2]
[422098666,1778573450000,-405.791371,0.00013699,2]
[422098662,1778573450000,-405.791371,0.00013699,2]
[422098663,1778573450000,-405.791371,0.00013699,2]
[422098674,1778573450000,-492.45,0.00013699,2]
[422098673,1778573450000,-151.0,0.00013699,2]
[422098668,1778573450000,-151.0,0.00013699,2]
[422098757,1778573451000,-613.272944,0.00013699,2]
[422098755,1778573451000,-3600.581493,0.00013699,2]
[422098765,1778573451000,-613.272944,0.00013699,2]
[422098756,1778573451000,-613.272944,0.00013699,2]
[422098753,1778573451000,-3600.581493,0.00013699,2]
[422098754,1778573451000,-3600.581493,0.00013699,2]
[422098742,1778573451000,-199.40326,0.00013699,2]
[422098750,1778573451000,-151.0,0.00013699,2]
[422098752,1778573451000,-3600.581493,0.00013699,2]
[422098749,1778573451000,-199.40326,0.00013699,2]
[422098751,1778573451000,-169.893549,0.00013699,2]
[422098758,1778573451000,-3600.581493,0.00013699,2]
[422098747,1778573451000,-199.40326,0.00013699,2]
[422098766,1778573451000,-829.726989,0.00013699,2]
[422098775,1778573451000,-334.68692,0.00013699,2]
[422098762,1778573451000,-3600.581493,0.00013699,2]
[422098760,1778573451000,-613.272944,0.00013699,2]
[422098764,1778573451000,-613.272944,0.00013699,2]
[422098768,1778573451000,-334.68692,0.00013699,2]
[422098763,1778573451000,-3600.581493,0.00013699,2]
[422098761,1778573451000,-613.272944,0.00013699,2]
[422098767,1778573451000,-613.272944,0.00013699,2]
[422098769,1778573451000,-829.726989,0.00013699,2]
[422098772,1778573451000,-829.726989,0.00013699,2]
[422098770,1778573451000,-613.272944,0.00013699,2]
[422098773,1778573451000,-829.726989,0.00013699,2]
[422098774,1778573451000,-334.68692,0.00013699,2]
[422098771,1778573451000,-334.68692,0.00013699,2]
[422098748,1778573451000,-199.40326,0.00013699,2]
[422098759,1778573451000,-3600.581493,0.00013699,2]
[422098746,1778573451000,-199.40326,0.00013699,2]
[422098712,1778573451000,-151.0,0.00013699,2]
[422098745,1778573451000,-327.757524,0.00013699,2]
[422098779,1778573451000,-334.68692,0.00013699,2]
[422098714,1778573451000,-428.906585,0.00013699,2]
[422098716,1778573451000,-151.0,0.00013699,2]
[422098715,1778573451000,-428.906585,0.00013699,2]
[422098713,1778573451000,-151.0,0.00013699,2]
[422098721,1778573451000,-428.906585,0.00013699,2]
[422098722,1778573451000,-151.0,0.00013699,2]
[422098719,1778573451000,-151.0,0.00013699,2]
[422098718,1778573451000,-151.0,0.00013699,2]
[422098724,1778573451000,-151.0,0.00013699,2]
[422098723,1778573451000,-151.0,0.00013699,2]
[422098717,1778573451000,-151.0,0.00013699,2]